fUST/lending_fUST_20250408
["ID","MTS","AMOUNT","RATE_DAILY","PERIOD"]
[357486060,1744083044660,-188.7389597,0.00021864,2]
[357486061,1744083044670,-500.0,0.00021864,2]
[357486062,1744083044684,-1003.86,0.00021864,2]
[357486063,1744083044694,-1109.73,0.00021864,2]
[357486064,1744083044704,-500.0,0.00021864,2]
[357486065,1744083044713,-500.0,0.00021864,2]
[357486066,1744083044725,-3676.57,0.00021864,2]
[357486067,1744083044735,-500.0,0.00021864,2]
[357486068,1744083044744,-1685.97,0.00021864,2]
[357486069,1744083044754,-500.0,0.00021864,2]
[357486070,1744083044764,-500.0,0.00021864,2]
[357486071,1744083044774,-500.0,0.00021864,2]
[357486072,1744083044784,-2170.99,0.00021864,2]
[357486073,1744083044795,-500.0,0.00021864,2]
[357486074,1744083044806,-7839.19,0.00021864,2]
[357486075,1744083044816,-500.0,0.00021864,2]
[357486076,1744083044826,-500.0,0.00021864,2]
[357486077,1744083044835,-500.0,0.00021864,2]
[357486078,1744083044845,-1042.21,0.00021864,2]
[357486079,1744083044855,-1419.0,0.00021864,2]
[357486080,1744083044865,-500.0,0.00021864,2]
[357486081,1744083044875,-500.0,0.00021864,2]
[357486082,1744083044884,-500.0,0.00021864,2]
[357486083,1744083044894,-944.88,0.00021868,2]
[357486084,1744083044904,-500.0,0.00021868,2]
[357486085,1744083044914,-1154.64,0.00021868,2]
[357486086,1744083044926,-656.97,0.00021868,2]
[357486087,1744083044936,-500.0,0.00021868,2]
[357486088,1744083044946,-4887.85,0.00021868,2]
[357486089,1744083044956,-563.07982288,0.00021868,2]
[357486090,1744083044966,-500.0,0.00021868,2]
[357486091,1744083044976,-1459.24,0.00021868,2]
[357486092,1744083044986,-1754.0,0.00021868,2]
[357486093,1744083044996,-1732.42,0.00021868,2]
[357486094,1744083045006,-1514.67,0.00021868,2]
[357486095,1744083045016,-1042.87,0.00021868,2]
[357486096,1744083045027,-500.0,0.00021868,2]
[357486097,1744083045037,-992.47,0.00021868,2]
[357486098,1744083045047,-2709.7,0.00021868,2]
[357486099,1744083045057,-500.0,0.00021868,2]
[357486100,1744083045068,-536.03,0.00021868,2]
[357486101,1744083045079,-665.17,0.00021868,2]
[357486102,1744083045088,-1546.39,0.00021868,2]
[357486103,1744083045098,-1947.78,0.00021868,2]
[357486104,1744083045108,-500.0,0.00021868,2]
[357486105,1744083045118,-500.0,0.00021868,2]
[357486106,1744083045127,-500.0,0.00021868,2]
[357486107,1744083045137,-528.24011418,0.00021868,2]
[357486108,1744083045147,-500.0,0.00021868,2]
[357486109,1744083045156,-500.0,0.00021869,2]
[357486110,1744083045166,-500.0,0.00021869,2]
[357486111,1744083045180,-500.0,0.00021869,2]
[357486112,1744083045190,-500.0,0.00021869,2]
[357486113,1744083045199,-623.99,0.00021869,2]
[357486114,1744083045209,-500.0,0.00021869,2]
[357486115,1744083045219,-500.0,0.00021869,2]
[357486116,1744083045228,-1324.29,0.00021869,2]
[357486117,1744083045238,-500.0,0.00021869,2]
[357486118,1744083045248,-500.0,0.00021869,2]
[357486119,1744083045258,-500.0,0.00021869,2]
[357486120,1744083045267,-500.0,0.00021869,2]
[357486121,1744083045277,-1015.28,0.00021869,2]
[357486122,1744083045287,-703.08,0.00021869,2]
[357486123,1744083045296,-1033.13,0.00021869,2]
[357486125,1744083045306,-1145.94,0.00021869,2]
[357486130,1744083045315,-500.0,0.00021869,2]
[357486131,1744083045485,-500.0,0.00021869,2]
[357486132,1744083045495,-500.0,0.00021869,2]
[357486133,1744083045504,-500.0,0.00021869,2]
[357486134,1744083045514,-1260.38,0.00021869,2]
[357486135,1744083045524,-1222.96,0.00021869,2]
[357486136,1744083045533,-500.0,0.00021869,2]
[357486137,1744083045543,-500.0,0.00021869,2]
[357486138,1744083045553,-500.0,0.00021869,2]
[357486139,1744083045563,-500.0,0.00021869,2]
[357486140,1744083045573,-500.0,0.00021869,2]
[357486141,1744083045583,-500.0,0.00021869,2]
[357486142,1744083045593,-500.0,0.00021869,2]
[357486143,1744083045603,-500.0,0.00021869,2]
[357486144,1744083045612,-500.0,0.00021869,2]
[357486145,1744083045622,-528.77,0.00021869,2]
[357486146,1744083045631,-500.0,0.00021869,2]
[357486147,1744083045644,-1021.44,0.00021869,2]
[357486148,1744083045653,-500.0,0.00021869,2]
[357486149,1744083045663,-500.0,0.00021869,2]
[357486150,1744083045675,-2104.84,0.00021869,2]
[357486151,1744083045684,-647.69,0.00021869,2]
[357486152,1744083045695,-1159.28,0.00021869,2]
[357486153,1744083045704,-714.58,0.00021869,2]
[357486154,1744083045714,-500.0,0.00021869,2]
[357486155,1744083045725,-374.90395261,0.00021869,2]
[357486156,1744083045735,-500.0,0.00021869,2]
[357486157,1744083045746,-500.0,0.00021873,2]
[357486158,1744083045756,-502.22652041,0.00021873,2]
[357486159,1744083045765,-256.9179675,0.00021873,2]
[357486160,1744083045775,-500.63505816,0.00021873,2]
[357486161,1744083045786,-500.0,0.00021873,2]
[357486162,1744083045795,-501.97825502,0.00021873,2]
[357486164,1744083045805,-301.64419783,0.00021873,2]
[357486165,1744083045815,-165.09083967,0.00021873,2]
[357486166,1744083045824,-501.06796866,0.00021873,2]
[357486167,1744083045835,-500.0,0.00021873,2]
[357486168,1744083045845,-500.0,0.00021917,2]
[357486169,1744083045854,-500.0,0.00021917,2]
[357486170,1744083045864,-516.15366025,0.00021917,2]
[357486171,1744083045874,-500.0,0.00021917,2]
[357486172,1744083045884,-500.0,0.00021917,2]
[357486173,1744083045894,-500.0,0.00021917,2]
[357486174,1744083045904,-500.0,0.00021917,2]
[357486175,1744083045914,-500.0,0.00021917,2]
[357486176,1744083045925,-500.0,0.00021917,2]
[357486177,1744083045935,-500.0,0.00021917,2]
[357486178,1744083045945,-500.0,0.00021917,2]
[357486179,1744083045955,-512.11988996,0.00021917,2]
[357486180,1744083045965,-500.0,0.00021917,2]
[357486181,1744083045975,-500.0,0.00021917,2]
[357486182,1744083045985,-500.0,0.00021917,2]
[357486183,1744083045996,-500.0,0.00021917,2]
[357486184,1744083046006,-500.0,0.00021917,2]
[357486185,1744083046016,-500.0,0.00021917,2]
[357486186,1744083046026,-500.0,0.00021917,2]
[357486187,1744083046036,-500.0,0.00021917,2]
[357486188,1744083046046,-500.0,0.00021917,2]
[357486189,1744083046056,-500.0,0.00021917,2]
[357486190,1744083046065,-500.0,0.00021917,2]
[357486191,1744083046076,-500.0,0.00021917,2]
[357486193,1744083046085,-500.0,0.00021917,2]
[357486194,1744083046095,-500.0,0.00021917,2]
[357486195,1744083046104,-500.0,0.00021917,2]
[357486196,1744083046114,-500.0,0.00021917,2]
[357486197,1744083046123,-500.0,0.00021917,2]
[357486198,1744083046133,-500.0,0.00021917,2]
[357486199,1744083046143,-500.0,0.00021917,2]
[357486200,1744083046153,-500.0,0.00021917,2]
[357486201,1744083046163,-500.0,0.00021917,2]
[357486202,1744083046174,-200.0,0.00021917,2]
[357486203,1744083046183,-500.0,0.00021917,2]
[357486204,1744083046193,-219.33121826,0.00021917,2]
[357486205,1744083046204,-500.0,0.00021917,2]
[357486206,1744083046214,-631.31216223,0.00021917,2]
[357486207,1744083046223,-500.0,0.00021917,2]
[357486208,1744083046234,-500.0,0.00021917,2]
[357486209,1744083046244,-540.60496652,0.00021917,2]
[357486210,1744083046254,-373.95918618,0.00021917,2]
[357486211,1744083046264,-500.0,0.00021917,2]
[357486212,1744083046274,-520.28919712,0.00021917,2]
[357486213,1744083046283,-500.0,0.00021917,2]
[357486214,1744083046293,-500.0,0.00021917,2]
[357486215,1744083046302,-524.42,0.00021917,2]
[357486216,1744083046311,-200.0,0.00021917,2]
[357486217,1744083046320,-184.95625,0.00021918,2]
[357486218,1744083046330,-373.83517708,0.00022079,2]
[357486219,1744083046339,-158.59495579,0.00022138,2]
[357486220,1744083046349,-500.0,0.00022138,2]
[357486221,1744083046358,-500.0,0.00022138,2]
[357486222,1744083046368,-500.0,0.00022138,2]
[357486223,1744083046378,-500.0,0.00022138,2]
[357486224,1744083046388,-586.9,0.00022138,2]
[357486225,1744083046398,-500.0,0.00022138,2]
[357486226,1744083046407,-677.05,0.00022138,2]
[357486227,1744083046417,-500.0,0.00022138,2]
[357486228,1744083046427,-500.0,0.00022138,2]
[357486229,1744083046437,-551.47,0.00022138,2]
[357486230,1744083046447,-500.0,0.00022138,2]
[357486231,1744083046457,-500.0,0.00022138,2]
[357486232,1744083046467,-500.0,0.00022138,2]
[357486233,1744083046476,-653.92,0.00022138,2]
[357486234,1744083046486,-500.0,0.00022138,2]
[357486235,1744083046495,-500.0,0.00022138,2]
[357486236,1744083046505,-523.98919345,0.00022138,2]
[357486237,1744083046515,-500.0,0.00022138,2]
[357486238,1744083046526,-500.0,0.00022138,2]
[357486239,1744083046536,-730.84,0.00022138,2]
[357486240,1744083046546,-500.0,0.00022138,2]
[357486241,1744083046556,-500.0,0.00022138,2]
[357486242,1744083046565,-858.61,0.00022138,2]
[357486243,1744083046575,-500.0,0.00022138,2]
[357486244,1744083046584,-500.0,0.00022138,2]
[357486245,1744083046594,-500.0,0.00022138,2]
[357486246,1744083046604,-1066.41,0.00022138,2]
[357486247,1744083046614,-500.0,0.00022138,2]
[357486248,1744083046624,-503.47069159,0.00022138,2]
[357486249,1744083046634,-500.0,0.00022138,2]
[357486250,1744083046646,-500.0,0.00022138,2]
[357486251,1744083046656,-506.71,0.00022138,2]
[357486252,1744083046666,-500.0,0.00022138,2]
[357486253,1744083046679,-500.0,0.00022138,2]
[357486254,1744083046688,-500.0,0.00022138,2]
[357486255,1744083046698,-500.0,0.00022138,2]
[357486256,1744083046707,-500.0,0.00022138,2]
[357486257,1744083046719,-500.0,0.00022138,2]
[357486258,1744083046729,-390.41843553,0.00022138,2]
[357486259,1744083046739,-1000.78,0.00022138,2]
[357486260,1744083046749,-500.0,0.00022138,2]
[357486261,1744083046760,-500.0,0.00022138,2]
[357486262,1744083046770,-500.0,0.00022138,2]
[357486263,1744083046780,-500.0,0.00022138,2]
[357486264,1744083046791,-500.0,0.00022138,2]
[357486265,1744083046802,-500.0,0.00022138,2]
[357486266,1744083046812,-500.0,0.00022138,2]
[357486267,1744083046822,-500.0,0.00022138,2]
[357486268,1744083046832,-1735.98,0.00022138,2]
[357486269,1744083046842,-500.0,0.00022138,2]
[357486270,1744083046852,-523.27,0.00022138,2]
[357486271,1744083046863,-500.0,0.00022138,2]
[357486272,1744083046875,-784.63,0.00022138,2]
[357486273,1744083046886,-2072.68,0.00022138,2]
[357486274,1744083046896,-500.0,0.00022138,2]
[357486275,1744083046907,-747.85,0.00022138,2]
[357486276,1744083046917,-1220.43,0.00022138,2]
[357486277,1744083046928,-500.0,0.00022138,2]
[357486278,1744083046938,-500.0,0.00022138,2]
[357486279,1744083046949,-500.0,0.00022138,2]
[357486280,1744083046959,-500.0,0.00022138,2]
[357486281,1744083046968,-1360.36,0.00022138,2]
[357486282,1744083046979,-500.0,0.00022138,2]
[357486283,1744083046989,-500.0,0.00022138,2]
[357486284,1744083046999,-500.0,0.00022138,2]
[357486285,1744083047010,-1028.62,0.00022138,2]
[357486286,1744083047019,-500.0,0.00022138,2]
[357486287,1744083047029,-500.0,0.00022138,2]
[357486288,1744083047039,-1696.5,0.00022138,2]
[357486289,1744083047049,-1052.2,0.00022138,2]
[357486290,1744083047058,-524.48,0.00022138,2]
[357486291,1744083047069,-500.0,0.00022138,2]
[357486292,1744083047078,-500.0,0.00022138,2]
[357486293,1744083047088,-500.0,0.00022138,2]
[357486294,1744083047098,-1205.17,0.00022138,2]
[357486295,1744083047108,-1527.76,0.00022138,2]
[357486296,1744083047118,-500.0,0.00022138,2]
[357486297,1744083047129,-500.0,0.00022138,2]
[357486298,1744083047138,-500.0,0.00022138,2]
[357486299,1744083047148,-1876.59,0.00022138,2]
[357486300,1744083047158,-500.0,0.00022138,2]
[357486301,1744083047167,-500.0,0.00022138,2]
[357486302,1744083047177,-500.0,0.00022138,2]
[357486303,1744083047188,-500.0,0.00022138,2]
[357486304,1744083047199,-2733.3,0.00022138,2]
[357486305,1744083047209,-503.57,0.00022138,2]
[357486306,1744083047219,-501.8282301,0.00022138,2]
[357486307,1744083047229,-500.0,0.00022138,2]
[357486308,1744083047239,-500.0,0.00022138,2]
[357486309,1744083047249,-500.0,0.00022138,2]
[357486310,1744083047258,-500.0,0.00022138,2]
[357486311,1744083047268,-500.0,0.00022138,2]
[357486312,1744083047278,-500.0,0.00022138,2]
[357486313,1744083047288,-500.0,0.00022138,2]
[357486314,1744083047297,-500.0,0.00022138,2]
[357486315,1744083047307,-500.0,0.00022138,2]
[357486316,1744083047316,-1211.76,0.00022138,2]
[357486317,1744083047326,-500.0,0.00022138,2]
[357486318,1744083047336,-500.0,0.00022138,2]
[357486319,1744083047346,-500.0,0.00022138,2]
[357486320,1744083047355,-500.0,0.00022138,2]
[357486321,1744083047365,-1059.44,0.00022138,2]
[357486322,1744083047375,-500.0,0.00022138,2]
[357486323,1744083047384,-1003.86,0.00022138,2]
[357486324,1744083047394,-1109.73,0.00022138,2]
[357486325,1744083047404,-500.0,0.00022138,2]
[357486326,1744083047413,-500.0,0.00022138,2]
[357486327,1744083047424,-3676.57,0.00022138,2]
[357486328,1744083047435,-500.0,0.00022138,2]
[357486329,1744083047445,-1685.97,0.00022138,2]
[357486330,1744083047455,-500.0,0.00022138,2]
[357486331,1744083047465,-500.0,0.00022138,2]
[357486332,1744083047474,-500.0,0.00022138,2]
[357486333,1744083047484,-2170.99,0.00022138,2]
[357486334,1744083047494,-500.0,0.00022138,2]
[357486335,1744083047504,-7839.19,0.00022138,2]
[357486336,1744083047514,-500.0,0.00022138,2]
[357486337,1744083047523,-500.1809741,0.00022138,2]
[357486338,1744083047533,-500.0,0.00022138,2]
[357486339,1744083047543,-1042.21,0.00022138,2]
[357486340,1744083047552,-1419.0,0.00022138,2]
[357486341,1744083047562,-500.0,0.00022138,2]
[357486342,1744083047571,-500.0,0.00022138,2]
[357486343,1744083047580,-500.0,0.00022138,2]
[357486344,1744083047590,-944.88,0.00022142,2]
[357486345,1744083047599,-500.0,0.00022142,2]
[357486346,1744083047609,-1154.64,0.00022142,2]
[357486347,1744083047619,-656.97,0.00022142,2]
[357486348,1744083047628,-500.0,0.00022142,2]
[357486349,1744083047639,-4887.85,0.00022142,2]
[357486350,1744083047651,-500.0,0.00022142,2]
[357486351,1744083047661,-1459.24,0.00022142,2]
[357486352,1744083047670,-1754.0,0.00022142,2]
[357486353,1744083047682,-1732.42,0.00022142,2]
[357486354,1744083047692,-1514.67,0.00022142,2]
[357486355,1744083047702,-1042.87,0.00022142,2]
[357486356,1744083047712,-500.0,0.00022142,2]
[357486357,1744083047724,-992.47,0.00022142,2]
[357486358,1744083047733,-2709.7,0.00022142,2]
[357486359,1744083047742,-500.0,0.00022142,2]
[357486360,1744083047752,-536.03,0.00022142,2]
[357486361,1744083047762,-665.17,0.00022142,2]
[357486362,1744083047771,-1546.39,0.00022142,2]
[357486363,1744083047780,-1947.78,0.00022142,2]
[357486364,1744083047790,-500.0,0.00022142,2]
[357486365,1744083047799,-500.0,0.00022142,2]
[357486366,1744083047808,-500.0,0.00022142,2]
[357486367,1744083047817,-500.0,0.00022142,2]
[357486368,1744083047826,-500.0,0.00022143,2]
[357486369,1744083047835,-500.0,0.00022143,2]
[357486370,1744083047845,-500.0,0.00022143,2]
[357486371,1744083047855,-500.0,0.00022143,2]
[357486372,1744083047864,-623.99,0.00022143,2]
[357486373,1744083047873,-500.0,0.00022143,2]
[357486374,1744083047882,-500.0,0.00022143,2]
[357486375,1744083047891,-1324.29,0.00022143,2]
[357486376,1744083047900,-310.50306711,0.00022143,2]
[357486377,1744083047910,-500.0,0.00022143,2]
[357486378,1744083047919,-500.0,0.00022143,2]
[357486379,1744083047929,-500.0,0.00022143,2]
[357486380,1744083047939,-1015.28,0.00022143,2]
[357486381,1744083047948,-703.08,0.00022143,2]
[357486382,1744083047957,-1033.13,0.00022143,2]
[357486383,1744083047966,-1145.94,0.00022143,2]
[357486384,1744083047975,-500.0,0.00022143,2]
[357486385,1744083047985,-500.0,0.00022143,2]
[357486386,1744083047994,-500.0,0.00022143,2]
[357486387,1744083048003,-500.0,0.00022143,2]
[357486388,1744083048013,-1260.38,0.00022143,2]
[357486389,1744083048022,-1222.96,0.00022143,2]
[357486390,1744083048032,-500.0,0.00022143,2]
[357486391,1744083048042,-500.0,0.00022143,2]
[357486392,1744083048052,-500.0,0.00022143,2]
[357486393,1744083048062,-500.0,0.00022143,2]
[357486394,1744083048071,-500.0,0.00022143,2]
[357486395,1744083048081,-500.0,0.00022143,2]
[357486396,1744083048091,-500.0,0.00022143,2]
[357486397,1744083048101,-500.0,0.00022143,2]
[357486398,1744083048111,-636.93786963,0.00022143,2]
[357486399,1744083048120,-528.77,0.00022143,2]
[357486400,1744083048130,-500.0,0.00022143,2]
[357486401,1744083048140,-1021.44,0.00022143,2]
[357486402,1744083048149,-500.0,0.00022143,2]
[357486403,1744083048159,-500.0,0.00022143,2]
[357486404,1744083048169,-2104.84,0.00022143,2]
[357486405,1744083048179,-647.69,0.00022143,2]
[357486406,1744083048189,-1159.28,0.00022143,2]
[357486407,1744083048199,-714.58,0.00022143,2]
[357486408,1744083048209,-500.0,0.00022143,2]
[357486409,1744083048219,-500.0,0.00022173,2]
[357486410,1744083048229,-500.0,0.00022173,2]
[357486411,1744083048239,-503.74540764,0.00022173,2]
[357486412,1744083048249,-500.0,0.00022191,2]
[357486413,1744083048259,-500.0,0.00022191,2]
[357486414,1744083048268,-500.0,0.00022191,2]
[357486415,1744083048279,-500.0,0.00022191,2]
[357486416,1744083048289,-500.0,0.00022191,2]
[357486417,1744083048299,-500.0,0.00022191,2]
[357486418,1744083048309,-500.0,0.00022191,2]
[357486419,1744083048320,-500.0,0.00022191,2]
[357486420,1744083048330,-436.81734765,0.00022191,2]
[357486421,1744083048340,-500.0,0.00022191,2]
[357486422,1744083048350,-500.0,0.00022191,2]
[357486423,1744083048359,-500.0,0.00022191,2]
[357486424,1744083048369,-268.67087719,0.00022191,2]
[357486425,1744083048379,-500.0,0.00022191,2]
[357486426,1744083048389,-500.0,0.00022191,2]
[357486427,1744083048400,-500.0,0.00022191,2]
[357486428,1744083048411,-500.0,0.00022191,2]
[357486429,1744083048420,-500.0,0.00022191,2]
[357486430,1744083048431,-500.0,0.00022191,2]
[357486431,1744083048442,-500.0,0.00022191,2]
[357486432,1744083048451,-500.0,0.00022191,2]
[357486433,1744083048462,-500.0,0.00022191,2]
[357486434,1744083048472,-500.0,0.00022191,2]
[357486435,1744083048481,-500.0,0.00022191,2]
[357486436,1744083048491,-500.0,0.00022191,2]
[357486437,1744083048501,-500.0,0.00022191,2]
[357486438,1744083048511,-500.0,0.00022191,2]
[357486439,1744083048521,-500.0,0.00022191,2]
[357486440,1744083048530,-178.95340117,0.00022191,2]
[357486441,1744083048540,-415.58738839,0.00022191,2]
[357486442,1744083048550,-500.0,0.00022191,2]
[357486443,1744083048560,-200.0,0.00022191,2]
[357486444,1744083048569,-500.0,0.00022191,2]
[357486445,1744083048580,-500.0,0.00022191,2]
[357486446,1744083048589,-500.0,0.00022191,2]
[357486447,1744083048599,-500.0,0.00022191,2]
[357486448,1744083048609,-500.0,0.00022191,2]
[357486449,1744083048619,-500.0,0.00022191,2]
[357486450,1744083048629,-500.0,0.00022191,2]
[357486451,1744083048639,-524.42,0.00022191,2]
[357486452,1744083048651,-373.83517708,0.00022365,2]
[357486453,1744083048661,-500.0,0.00022412,2]
[357486454,1744083048671,-500.0,0.00022412,2]
[357486455,1744083048683,-500.0,0.00022412,2]
[357486456,1744083048692,-500.0,0.00022412,2]
[357486457,1744083048702,-586.9,0.00022412,2]
[357486458,1744083048712,-500.0,0.00022412,2]
[357486459,1744083048724,-677.05,0.00022412,2]
[357486460,1744083048736,-500.0,0.00022412,2]
[357486461,1744083048746,-551.47,0.00022412,2]
[357486462,1744083048757,-500.0,0.00022412,2]
[357486463,1744083048767,-500.0,0.00022412,2]
[357486464,1744083048777,-500.0,0.00022412,2]
[357486465,1744083048786,-653.92,0.00022412,2]
[357486466,1744083048796,-500.0,0.00022412,2]
[357486467,1744083048806,-500.0,0.00022412,2]
[357486468,1744083048816,-287.45188397,0.00022412,2]
[357486469,1744083048826,-500.0,0.00022412,2]
[357486470,1744083048836,-730.84,0.00022412,2]
[357486471,1744083048846,-500.0,0.00022412,2]
[357486472,1744083048856,-500.0,0.00022412,2]
[357486473,1744083048866,-858.61,0.00022412,2]
[357486474,1744083048875,-500.0,0.00022412,2]
[357486475,1744083048886,-500.0,0.00022412,2]
[357486476,1744083048896,-500.0,0.00022412,2]
[357486477,1744083048905,-1066.41,0.00022412,2]
[357486478,1744083048915,-500.0,0.00022412,2]
[357486479,1744083048925,-500.0,0.00022412,2]
[357486480,1744083048936,-500.0,0.00022412,2]
[357486481,1744083048946,-506.71,0.00022412,2]
[357486482,1744083048955,-500.0,0.00022412,2]
[357486483,1744083048966,-500.0,0.00022412,2]
[357486484,1744083048976,-500.0,0.00022412,2]
[357486485,1744083048991,-500.0,0.00022412,2]
[357486486,1744083049001,-500.0,0.00022412,2]
[357486487,1744083049012,-500.0,0.00022412,2]
[357486488,1744083049022,-1000.78,0.00022412,2]
[357486489,1744083049033,-500.0,0.00022412,2]
[357486490,1744083049044,-500.0,0.00022412,2]
[357486491,1744083049054,-500.0,0.00022412,2]
[357486492,1744083049064,-500.0,0.00022412,2]
[357486493,1744083049073,-500.0,0.00022412,2]
[357486494,1744083049084,-500.0,0.00022412,2]
[357486495,1744083049248,-500.0,0.00022412,2]
[357486496,1744083049259,-500.0,0.00022412,2]
[357486497,1744083049269,-1735.98,0.00022412,2]
[357486498,1744083049279,-500.0,0.00022412,2]
[357486499,1744083049289,-523.27,0.00022412,2]
[357486500,1744083049299,-500.0,0.00022412,2]
[357486501,1744083049309,-784.63,0.00022412,2]
[357486502,1744083049318,-2072.68,0.00022412,2]
[357486503,1744083049328,-500.0,0.00022412,2]
[357486504,1744083049338,-747.85,0.00022412,2]
[357486505,1744083049347,-1220.43,0.00022412,2]
[357486506,1744083049357,-500.0,0.00022412,2]
[357486507,1744083049366,-500.0,0.00022412,2]
[357486508,1744083049376,-500.0,0.00022412,2]
[357486509,1744083049386,-500.0,0.00022412,2]
[357486510,1744083049396,-1360.36,0.00022412,2]
[357486511,1744083049405,-500.0,0.00022412,2]
[357486512,1744083049415,-500.0,0.00022412,2]
[357486513,1744083049424,-500.0,0.00022412,2]
[357486514,1744083049435,-1028.62,0.00022412,2]
[357486515,1744083049444,-500.0,0.00022412,2]
[357486516,1744083049455,-500.0,0.00022412,2]
[357486517,1744083049464,-1696.5,0.00022412,2]
[357486518,1744083049474,-1052.2,0.00022412,2]
[357486519,1744083049484,-524.48,0.00022412,2]
[357486520,1744083049494,-500.0,0.00022412,2]
[357486521,1744083049504,-500.0,0.00022412,2]
[357486522,1744083049514,-500.0,0.00022412,2]
[357486523,1744083049523,-1205.17,0.00022412,2]
[357486524,1744083049533,-1527.76,0.00022412,2]
[357486525,1744083049543,-500.0,0.00022412,2]
[357486526,1744083049553,-378.85477467,0.00022412,2]
[357486527,1744083049563,-500.0,0.00022412,2]
[357486528,1744083049572,-1876.59,0.00022412,2]
[357486529,1744083049582,-500.0,0.00022412,2]
[357486530,1744083049592,-500.0,0.00022412,2]
[357486531,1744083049602,-500.0,0.00022412,2]
[357486532,1744083049612,-500.0,0.00022412,2]
[357486533,1744083049622,-2733.3,0.00022412,2]
[357486534,1744083049632,-503.57,0.00022412,2]
[357486535,1744083049644,-500.0,0.00022412,2]
[357486536,1744083049655,-511.82705808,0.00022412,2]
[357486537,1744083049664,-500.0,0.00022412,2]
[357486538,1744083049674,-473.14925142,0.00022412,2]
[357486539,1744083049685,-500.0,0.00022412,2]
[357486540,1744083049695,-500.0,0.00022412,2]
[357486541,1744083049705,-500.0,0.00022412,2]
[357486542,1744083049715,-500.0,0.00022412,2]
[357486543,1744083049729,-500.0,0.00022412,2]
[357486544,1744083049740,-1211.76,0.00022412,2]
[357486545,1744083049749,-500.0,0.00022412,2]
[357486546,1744083049759,-500.0,0.00022412,2]
[357486547,1744083049769,-500.0,0.00022412,2]
[357486548,1744083049779,-500.0,0.00022412,2]
[357486549,1744083049789,-1059.44,0.00022412,2]
[357486550,1744083049798,-500.0,0.00022412,2]
[357486551,1744083049809,-1003.86,0.00022412,2]
[357486552,1744083049818,-1109.73,0.00022412,2]
[357486553,1744083049828,-500.0,0.00022412,2]
[357486554,1744083049837,-500.0,0.00022412,2]
[357486555,1744083049847,-3676.57,0.00022412,2]
[357486556,1744083049857,-500.0,0.00022412,2]
[357486557,1744083049867,-1685.97,0.00022412,2]
[357486558,1744083049876,-500.0,0.00022412,2]
[357486559,1744083049886,-500.0,0.00022412,2]
[357486560,1744083049895,-500.0,0.00022412,2]
[357486561,1744083049905,-2170.99,0.00022412,2]
[357486562,1744083049915,-500.0,0.00022412,2]
[357486563,1744083049924,-7839.19,0.00022412,2]
[357486564,1744083049935,-168.23216722,0.00022412,2]
[357486565,1744083049945,-500.0,0.00022412,2]
[357486566,1744083049955,-1042.21,0.00022412,2]